[Event "Titled Tuesday Blitz February 07 Early 2023"]
[White "Mohamed Anees M"]
[Black "Prudnykova, Olga"]
[WhiteFideId "35065815"]
[BlackFideId "14121093"]
[WhiteElo "2315"]
[BlackElo "2268"]
[Result "1-0"]
[Round "03"]
[TimeControl "180+2"]
[Date "2023.02.07"]
[WhiteClock "0:00:15"]
[BlackClock "0:00:03"]

1. d4 {[%clk 0:03:00]}  Nf6 {[%clk 0:02:59]} 2. c4 {[%clk 0:03:00]}  g6 {[%clk 0:02:59]} 3. Nc3 {[%clk 0:03:00]}  d5 {[%clk 0:02:59]} 4. cxd5 {[%clk 0:02:58]}  Nxd5 {[%clk 0:02:58]} 5. e4 {[%clk 0:02:58]}  Nxc3 {[%clk 0:02:58]} 6. bxc3 {[%clk 0:02:59]}  Bg7 {[%clk 0:02:58]} 7. Nf3 {[%clk 0:02:59]}  c5 {[%clk 0:02:57]} 8. Rb1 {[%clk 0:02:56]}  O-O {[%clk 0:02:55]} 9. Be3 {[%clk 0:02:48]}  Qc7 {[%clk 0:02:49]} 10. Be2 {[%clk 0:02:26]}  b6 {[%clk 0:02:44]} 11. O-O {[%clk 0:02:25]}  Bb7 {[%clk 0:02:42]} 12. d5 {[%clk 0:02:21]}  c4 {[%clk 0:02:32]} 13. Bd4 {[%clk 0:02:18]}  f6 {[%clk 0:01:54]} 14. Nd2 {[%clk 0:02:06]}  Ba6 {[%clk 0:01:53]} 15. Rb4 {[%clk 0:02:04]}  Rc8 {[%clk 0:01:47]} 16. Bxc4 {[%clk 0:02:04]}  Bxc4 {[%clk 0:01:28]} 17. Rxc4 {[%clk 0:02:04]}  Qd7 {[%clk 0:01:27]} 18. Rxc8+ {[%clk 0:01:53]}  Qxc8 {[%clk 0:01:28]} 19. Qb3 {[%clk 0:01:50]}  Kh8 {[%clk 0:01:26]} 20. Nf3 {[%clk 0:01:35]}  Nd7 {[%clk 0:01:25]} 21. h3 {[%clk 0:01:32]}  Nc5 {[%clk 0:01:22]} 22. Qb1 {[%clk 0:01:29]}  Qc7 {[%clk 0:01:16]} 23. Re1 {[%clk 0:01:28]}  Rd8 {[%clk 0:01:14]} 24. c4 {[%clk 0:01:11]}  e5 {[%clk 0:01:11]} 25. Ba1 {[%clk 0:00:46]}  Bf8 {[%clk 0:01:07]} 26. Qc2 {[%clk 0:00:39]}  Bd6 {[%clk 0:01:05]} 27. Re3 {[%clk 0:00:36]}  Kg7 {[%clk 0:01:02]} 28. Nd2 {[%clk 0:00:34]}  Rc8 {[%clk 0:00:57]} 29. h4 {[%clk 0:00:21]}  Na6 {[%clk 0:00:51]} 30. h5 {[%clk 0:00:19]}  Bc5 {[%clk 0:00:49]} 31. Rh3 {[%clk 0:00:19]}  g5 {[%clk 0:00:49]} 32. Rf3 {[%clk 0:00:18]}  Bd6 {[%clk 0:00:36]} 33. Qa4 {[%clk 0:00:18]}  Nc5 {[%clk 0:00:34]} 34. Qc2 {[%clk 0:00:19]}  Nd7 {[%clk 0:00:34]} 35. Rc3 {[%clk 0:00:18]}  a5 {[%clk 0:00:32]} 36. a3 {[%clk 0:00:19]}  Nc5 {[%clk 0:00:31]} 37. Nf1 {[%clk 0:00:19]}  Qf7 {[%clk 0:00:31]} 38. Ng3 {[%clk 0:00:18]}  Kg8 {[%clk 0:00:28]} 39. Qe2 {[%clk 0:00:18]}  Nd7 {[%clk 0:00:19]} 40. Nf5 {[%clk 0:00:18]}  Qf8 {[%clk 0:00:20]} 41. Rf3 {[%clk 0:00:18]}  Bxa3 {[%clk 0:00:17]} 42. Qe3 {[%clk 0:00:16]}  Bc5 {[%clk 0:00:17]} 43. Qb3 {[%clk 0:00:17]}  Nb8 {[%clk 0:00:14]} 44. Qb5 {[%clk 0:00:16]}  Qe8 {[%clk 0:00:12]} 45. Qb1 {[%clk 0:00:15]}  Na6 {[%clk 0:00:12]} 46. h6 {[%clk 0:00:15]}  Nb4 {[%clk 0:00:11]} 47. Rg3 {[%clk 0:00:15]}  Kf7 {[%clk 0:00:11]} 48. Qc1 {[%clk 0:00:15]}  Qg8 {[%clk 0:00:10]} 49. Qd1 {[%clk 0:00:16]}  Qg6 {[%clk 0:00:10]} 50. Qg4 {[%clk 0:00:16]}  Rc7 {[%clk 0:00:09]} 51. Bb2 {[%clk 0:00:16]}  Nc2 {[%clk 0:00:08]} 52. Rf3 {[%clk 0:00:16]}  Nb4 {[%clk 0:00:07]} 53. Bxe5 {[%clk 0:00:16]}  Ra7 {[%clk 0:00:06]} 54. Nh4 {[%clk 0:00:16]}  gxh4 {[%clk 0:00:04]} 55. Qe6+ {[%clk 0:00:16]}  Kf8 {[%clk 0:00:03]} 56. Rxf6+ {[%clk 0:00:16]}  Rf7 {[%clk 0:00:03]} 57. Rxg6 {[%clk 0:00:16]}  hxg6 {[%clk 0:00:03]} 58. Bg7+ {[%clk 0:00:15]} 1-0


[Site "https://www.chess.com"]

[Event "Titled Tuesday Blitz February 07 Early 2023"]
[White "Jenkins, Drake"]
[Black "Kopczynski, Michal"]
[WhiteFideId "2022397"]
[BlackFideId "1124200"]
[WhiteElo "2130"]
[BlackElo "2225"]
[Result "1-0"]
[Round "03"]
[TimeControl "180+2"]
[Date "2023.02.07"]
[WhiteClock "0:00:02"]
[BlackClock "0:00:05"]

1. Nf3 {[%clk 0:03:00]}  d6 {[%clk 0:03:00]} 2. c4 {[%clk 0:03:00]}  g6 {[%clk 0:03:00]} 3. g3 {[%clk 0:02:59]}  Bg7 {[%clk 0:03:01]} 4. Bg2 {[%clk 0:03:00]}  e5 {[%clk 0:03:01]} 5. Nc3 {[%clk 0:03:00]}  Ne7 {[%clk 0:03:02]} 6. O-O {[%clk 0:02:59]}  O-O {[%clk 0:03:02]} 7. Rb1 {[%clk 0:02:59]}  f5 {[%clk 0:03:01]} 8. d3 {[%clk 0:02:59]}  h6 {[%clk 0:03:00]} 9. Qc2 {[%clk 0:02:55]}  f4 {[%clk 0:02:59]} 10. b4 {[%clk 0:02:49]}  fxg3 {[%clk 0:02:54]} 11. hxg3 {[%clk 0:02:48]}  Bg4 {[%clk 0:02:53]} 12. Nd5 {[%clk 0:02:08]}  Nbc6 {[%clk 0:02:15]} 13. Bb2 {[%clk 0:01:18]}  Nxd5 {[%clk 0:02:03]} 14. cxd5 {[%clk 0:01:18]}  Nxb4 {[%clk 0:02:03]} 15. Qc4 {[%clk 0:01:17]}  Bxf3 {[%clk 0:01:56]} 16. Bxf3 {[%clk 0:01:17]}  a5 {[%clk 0:01:51]} 17. Ba3 {[%clk 0:01:09]}  b5 {[%clk 0:00:58]} 18. Qb3 {[%clk 0:00:55]}  Qg5 {[%clk 0:00:43]} 19. Bxb4 {[%clk 0:00:50]}  axb4 {[%clk 0:00:44]} 20. Qxb4 {[%clk 0:00:51]}  h5 {[%clk 0:00:38]} 21. Kg2 {[%clk 0:00:40]}  Rxa2 {[%clk 0:00:34]} 22. Rh1 {[%clk 0:00:26]}  Rf4 {[%clk 0:00:25]} 23. Qxb5 {[%clk 0:00:21]}  Rf8 {[%clk 0:00:22]} 24. Qc4 {[%clk 0:00:16]}  Rd2 {[%clk 0:00:17]} 25. Qxc7 {[%clk 0:00:14]}  e4 {[%clk 0:00:15]} 26. dxe4 {[%clk 0:00:09]}  Be5 {[%clk 0:00:14]} 27. Rb7 {[%clk 0:00:07]}  Qh6 {[%clk 0:00:11]} 28. Qd7 {[%clk 0:00:04]}  Qg7 {[%clk 0:00:07]} 29. Qe6+ {[%clk 0:00:03]}  Rf7 {[%clk 0:00:07]} 30. Rb8+ {[%clk 0:00:01]}  Kh7 {[%clk 0:00:07]} 31. Bxh5 {[%clk 0:00:01]}  Qh6 {[%clk 0:00:03]} 32. Bxg6+ {[%clk 0:00:01]}  Kg7 {[%clk 0:00:02]} 33. Rxh6 {[%clk 0:00:02]}  Rxf2+ {[%clk 0:00:02]} 34. Kxf2 {[%clk 0:00:01]}  Kxh6 {[%clk 0:00:03]} 35. Kf3 {[%clk 0:00:01]}  Kg5 {[%clk 0:00:04]} 36. Qf5+ {[%clk 0:00:01]}  Kh6 {[%clk 0:00:05]} 37. Rg8 {[%clk 0:00:01]}  Rd3+ {[%clk 0:00:04]} 38. exd3 {[%clk 0:00:01]}  Bg7 {[%clk 0:00:05]} 39. Qh5# {[%clk 0:00:02]} 1-0


[Site "https://www.chess.com"]

[Event "Titled Tuesday Blitz February 07 Early 2023"]
[White "Poliakova, Varvara"]
[Black "Marchesich, Giovanni"]
[WhiteFideId "13518313"]
[BlackFideId "2824790"]
[WhiteElo "2010"]
[BlackElo "2217"]
[Result "0-1"]
[Round "03"]
[TimeControl "180+2"]
[Date "2023.02.07"]
[WhiteClock "0:00:19"]
[BlackClock "0:00:17"]

1. e4 {[%clk 0:03:00]}  e5 {[%clk 0:02:57]} 2. Nf3 {[%clk 0:02:59]}  Nf6 {[%clk 0:02:58]} 3. Nc3 {[%clk 0:02:58]}  Nc6 {[%clk 0:02:58]} 4. d4 {[%clk 0:02:58]}  Bb4 {[%clk 0:02:56]} 5. Bg5 {[%clk 0:02:49]}  exd4 {[%clk 0:02:36]} 6. Nxd4 {[%clk 0:02:48]}  O-O {[%clk 0:02:32]} 7. Nf5 {[%clk 0:02:37]}  Qe8 {[%clk 0:02:24]} 8. f3 {[%clk 0:02:30]}  Nxe4 {[%clk 0:02:21]} 9. fxe4 {[%clk 0:02:27]}  Qxe4+ {[%clk 0:02:22]} 10. Ne3 {[%clk 0:02:27]}  Qe5 {[%clk 0:01:56]} 11. h4 {[%clk 0:01:55]}  Bxc3+ {[%clk 0:01:55]} 12. bxc3 {[%clk 0:01:55]}  Qxc3+ {[%clk 0:01:56]} 13. Kf2 {[%clk 0:01:54]}  d6 {[%clk 0:01:43]} 14. Bd3 {[%clk 0:01:52]}  h6 {[%clk 0:01:40]} 15. Bf4 {[%clk 0:01:44]}  Qd4 {[%clk 0:01:39]} 16. Qf3 {[%clk 0:01:38]}  Ne5 {[%clk 0:01:34]} 17. Bxe5 {[%clk 0:01:38]}  dxe5 {[%clk 0:01:23]} 18. Qe4 {[%clk 0:01:37]}  Qxe4 {[%clk 0:01:19]} 19. Bxe4 {[%clk 0:01:37]}  f5 {[%clk 0:01:13]} 20. Bd5+ {[%clk 0:01:37]}  Kh7 {[%clk 0:01:13]} 21. Nc4 {[%clk 0:01:27]}  c6 {[%clk 0:01:08]} 22. Bf3 {[%clk 0:01:26]}  e4 {[%clk 0:01:08]} 23. Be2 {[%clk 0:01:24]}  Be6 {[%clk 0:01:06]} 24. Nd6 {[%clk 0:01:23]}  b5 {[%clk 0:00:58]} 25. a4 {[%clk 0:01:20]}  Rad8 {[%clk 0:00:56]} 26. Rhd1 {[%clk 0:01:19]}  Bd5 {[%clk 0:00:53]} 27. Nb7 {[%clk 0:01:15]}  Rb8 {[%clk 0:00:50]} 28. Nc5 {[%clk 0:01:16]}  b4 {[%clk 0:00:45]} 29. Nd7 {[%clk 0:01:16]}  a5 {[%clk 0:00:39]} 30. Nxf8+ {[%clk 0:01:15]}  Rxf8 {[%clk 0:00:39]} 31. g3 {[%clk 0:01:15]}  g5 {[%clk 0:00:39]} 32. hxg5 {[%clk 0:01:14]}  hxg5 {[%clk 0:00:40]} 33. Rh1+ {[%clk 0:01:14]}  Kg7 {[%clk 0:00:39]} 34. Rh5 {[%clk 0:01:14]}  Kf6 {[%clk 0:00:37]} 35. Rah1 {[%clk 0:01:14]}  f4 {[%clk 0:00:36]} 36. gxf4 {[%clk 0:01:14]}  gxf4 {[%clk 0:00:37]} 37. Rh6+ {[%clk 0:01:07]}  Ke5 {[%clk 0:00:36]} 38. R1h5+ {[%clk 0:00:57]}  Kd4 {[%clk 0:00:36]} 39. Ke1 {[%clk 0:00:55]}  f3 {[%clk 0:00:33]} 40. Bxf3 {[%clk 0:00:29]}  Rxf3 {[%clk 0:00:29]} 41. Rh2 {[%clk 0:00:28]}  Kc3 {[%clk 0:00:21]} 42. Kd1 {[%clk 0:00:19]}  Kb2 {[%clk 0:00:05]} 43. R6h3 {[%clk 0:00:18]}  Ka3 {[%clk 0:00:05]} 44. Rxf3+ {[%clk 0:00:18]}  exf3 {[%clk 0:00:06]} 45. Kd2 {[%clk 0:00:17]}  Kxa4 {[%clk 0:00:06]} 46. Rh1 {[%clk 0:00:16]}  Kb5 {[%clk 0:00:05]} 47. c3 {[%clk 0:00:15]}  b3 {[%clk 0:00:04]} 48. Kc1 {[%clk 0:00:14]}  Kc4 {[%clk 0:00:04]} 49. Kb2 {[%clk 0:00:13]}  a4 {[%clk 0:00:05]} 50. Rd1 {[%clk 0:00:12]}  a3+ {[%clk 0:00:03]} 51. Kxa3 {[%clk 0:00:12]}  Kxc3 {[%clk 0:00:04]} 52. Rh1 {[%clk 0:00:09]}  Be4 {[%clk 0:00:02]} 53. Rc1+ {[%clk 0:00:07]}  Kd2 {[%clk 0:00:02]} 54. Rh1 {[%clk 0:00:07]}  f2 {[%clk 0:00:02]} 55. Ra1 {[%clk 0:00:07]}  Ke2 {[%clk 0:00:03]} 56. Kxb3 {[%clk 0:00:07]}  f1=Q {[%clk 0:00:03]} 57. Rxf1 {[%clk 0:00:07]}  Kxf1 {[%clk 0:00:04]} 58. Kc4 {[%clk 0:00:08]}  Bd5+ {[%clk 0:00:05]} 59. Kd4 {[%clk 0:00:08]}  Kg2 {[%clk 0:00:05]} 60. Kc5 {[%clk 0:00:08]}  Kf3 {[%clk 0:00:06]} 61. Kd6 {[%clk 0:00:09]}  Ke2 {[%clk 0:00:07]} 62. Kc5 {[%clk 0:00:10]}  Ke3 {[%clk 0:00:08]} 63. Kb4 {[%clk 0:00:10]}  Kd3 {[%clk 0:00:09]} 64. Kc5 {[%clk 0:00:11]}  Kd2 {[%clk 0:00:10]} 65. Kb4 {[%clk 0:00:12]}  Kc2 {[%clk 0:00:11]} 66. Kc5 {[%clk 0:00:13]}  Kb2 {[%clk 0:00:12]} 67. Kb4 {[%clk 0:00:13]}  Ka2 {[%clk 0:00:12]} 68. Kc5 {[%clk 0:00:14]}  Ka3 {[%clk 0:00:13]} 69. Kd4 {[%clk 0:00:14]}  Kb4 {[%clk 0:00:14]} 70. Kd3 {[%clk 0:00:14]}  c5 {[%clk 0:00:14]} 71. Kd2 {[%clk 0:00:15]}  Bc6 {[%clk 0:00:15]} 72. Kc2 {[%clk 0:00:16]}  Kc4 {[%clk 0:00:15]} 73. Kc1 {[%clk 0:00:17]}  Kc3 {[%clk 0:00:16]} 74. Kd1 {[%clk 0:00:17]}  c4 {[%clk 0:00:16]} 75. Kc1 {[%clk 0:00:18]}  Ba8 {[%clk 0:00:17]} 76. Kb1 {[%clk 0:00:19]}  Kd2 {[%clk 0:00:17]} 0-1


[Site "https://www.chess.com"]

[Event "Titled Tuesday Blitz February 07 Early 2023"]
[White "Karttunen, Mika"]
[Black "Bobomurodova, Maftuna"]
[WhiteFideId "502081"]
[BlackFideId "14207400"]
[WhiteElo "2490"]
[BlackElo "1946"]
[Result "1-0"]
[Round "03"]
[TimeControl "180+2"]
[Date "2023.02.07"]
[WhiteClock "0:00:49"]
[BlackClock "0:00:10"]

1. e4 {[%clk 0:02:55]}  e5 {[%clk 0:02:58]} 2. Nf3 {[%clk 0:02:55]}  Nc6 {[%clk 0:02:57]} 3. Bb5 {[%clk 0:02:55]}  Nf6 {[%clk 0:02:57]} 4. O-O {[%clk 0:02:54]}  Nxe4 {[%clk 0:02:55]} 5. d4 {[%clk 0:02:53]}  Nd6 {[%clk 0:02:55]} 6. Bxc6 {[%clk 0:02:54]}  dxc6 {[%clk 0:02:53]} 7. dxe5 {[%clk 0:02:54]}  Nf5 {[%clk 0:02:54]} 8. Qxd8+ {[%clk 0:02:55]}  Kxd8 {[%clk 0:02:54]} 9. Nc3 {[%clk 0:02:54]}  Be7 {[%clk 0:02:52]} 10. h3 {[%clk 0:02:52]}  Ke8 {[%clk 0:02:49]} 11. Ne2 {[%clk 0:02:41]}  Nh4 {[%clk 0:02:48]} 12. Nxh4 {[%clk 0:02:37]}  Bxh4 {[%clk 0:02:45]} 13. g4 {[%clk 0:02:38]}  h5 {[%clk 0:02:40]} 14. f3 {[%clk 0:02:38]}  hxg4 {[%clk 0:02:37]} 15. fxg4 {[%clk 0:02:30]}  Be7 {[%clk 0:02:33]} 16. Kg2 {[%clk 0:02:28]}  Be6 {[%clk 0:02:32]} 17. Be3 {[%clk 0:02:20]}  Rd8 {[%clk 0:02:19]} 18. Nf4 {[%clk 0:02:15]}  Bd5+ {[%clk 0:02:14]} 19. Kg3 {[%clk 0:02:13]}  Bh4+ {[%clk 0:02:13]} 20. Kh2 {[%clk 0:02:14]}  Ke7 {[%clk 0:02:10]} 21. Rad1 {[%clk 0:02:03]}  Be4 {[%clk 0:02:08]} 22. Bc5+ {[%clk 0:01:58]}  Ke8 {[%clk 0:02:04]} 23. Rxd8+ {[%clk 0:01:48]}  Kxd8 {[%clk 0:02:00]} 24. e6 {[%clk 0:01:45]}  fxe6 {[%clk 0:01:04]} 25. Nxe6+ {[%clk 0:01:44]}  Kc8 {[%clk 0:00:50]} 26. Nxg7 {[%clk 0:01:42]}  Bxc2 {[%clk 0:00:48]} 27. Ne6 {[%clk 0:01:19]}  b6 {[%clk 0:00:45]} 28. Bd4 {[%clk 0:01:12]}  Re8 {[%clk 0:00:42]} 29. Rf8 {[%clk 0:01:11]}  Rxf8 {[%clk 0:00:34]} 30. Nxf8 {[%clk 0:01:11]}  c5 {[%clk 0:00:34]} 31. Be5 {[%clk 0:01:10]}  Bb1 {[%clk 0:00:26]} 32. a3 {[%clk 0:01:09]}  Be7 {[%clk 0:00:19]} 33. Ne6 {[%clk 0:01:08]}  Kd7 {[%clk 0:00:18]} 34. Nxc7 {[%clk 0:01:06]}  Bd6 {[%clk 0:00:18]} 35. Bxd6 {[%clk 0:01:06]}  Kxd6 {[%clk 0:00:18]} 36. Nb5+ {[%clk 0:01:06]}  Kd5 {[%clk 0:00:19]} 37. Nxa7 {[%clk 0:01:06]}  Kc4 {[%clk 0:00:17]} 38. Nc8 {[%clk 0:01:03]}  b5 {[%clk 0:00:14]} 39. Nd6+ {[%clk 0:00:59]}  Kb3 {[%clk 0:00:14]} 40. Nxb5 {[%clk 0:00:57]}  Kxb2 {[%clk 0:00:15]} 41. a4 {[%clk 0:00:55]}  c4 {[%clk 0:00:14]} 42. a5 {[%clk 0:00:54]}  Be4 {[%clk 0:00:14]} 43. a6 {[%clk 0:00:52]}  Bc6 {[%clk 0:00:13]} 44. a7 {[%clk 0:00:49]}  c3 {[%clk 0:00:10]} 45. Nxc3 {[%clk 0:00:48]}  Kxc3 {[%clk 0:00:10]} 46. g5 {[%clk 0:00:49]}  Kd4 {[%clk 0:00:10]} 47. g6 {[%clk 0:00:49]}  Ke5 {[%clk 0:00:10]} 48. g7 {[%clk 0:00:49]} 1-0


[Site "https://www.chess.com"]

[Event "Titled Tuesday Blitz February 07 Early 2023"]
[White "Hirneise, Jens"]
[Black "Vaglio Munoz, Jaime"]
[WhiteFideId "24614734"]
[BlackFideId "6500145"]
[WhiteElo "2277"]
[BlackElo "2174"]
[Result "1-0"]
[Round "03"]
[TimeControl "180+2"]
[Date "2023.02.07"]
[WhiteClock "0:00:07"]
[BlackClock "0:00:28"]

1. e4 {[%clk 0:03:00]}  e6 {[%clk 0:02:59]} 2. d3 {[%clk 0:02:59]}  d5 {[%clk 0:02:59]} 3. Nd2 {[%clk 0:02:59]}  b6 {[%clk 0:02:58]} 4. g3 {[%clk 0:02:58]}  Bb7 {[%clk 0:02:58]} 5. Bg2 {[%clk 0:02:59]}  Nf6 {[%clk 0:02:58]} 6. Qe2 {[%clk 0:02:58]}  c5 {[%clk 0:02:55]} 7. Nh3 {[%clk 0:02:52]}  Nc6 {[%clk 0:02:55]} 8. c3 {[%clk 0:02:50]}  dxe4 {[%clk 0:02:54]} 9. dxe4 {[%clk 0:02:45]}  e5 {[%clk 0:02:51]} 10. O-O {[%clk 0:02:43]}  h6 {[%clk 0:02:50]} 11. Rd1 {[%clk 0:02:43]}  Qc7 {[%clk 0:02:49]} 12. a4 {[%clk 0:02:40]}  a5 {[%clk 0:02:48]} 13. Nc4 {[%clk 0:02:34]}  Ba6 {[%clk 0:02:48]} 14. f3 {[%clk 0:02:33]}  Be7 {[%clk 0:02:40]} 15. Bf1 {[%clk 0:02:29]}  O-O {[%clk 0:02:39]} 16. Qc2 {[%clk 0:02:27]}  Rfd8 {[%clk 0:02:37]} 17. Be3 {[%clk 0:02:16]}  Bf8 {[%clk 0:02:36]} 18. Nf2 {[%clk 0:02:15]}  Ne7 {[%clk 0:02:33]} 19. Na3 {[%clk 0:02:10]}  Bxf1 {[%clk 0:02:31]} 20. Kxf1 {[%clk 0:02:07]}  Ng6 {[%clk 0:02:26]} 21. Qb3 {[%clk 0:02:03]}  Be7 {[%clk 0:02:19]} 22. Qc4 {[%clk 0:01:54]}  Nf8 {[%clk 0:02:18]} 23. Nb5 {[%clk 0:01:53]}  Qc6 {[%clk 0:02:13]} 24. Nd3 {[%clk 0:01:51]}  N6d7 {[%clk 0:02:02]} 25. Rd2 {[%clk 0:01:46]}  Qf6 {[%clk 0:01:56]} 26. Kg2 {[%clk 0:01:43]}  Rdc8 {[%clk 0:01:54]} 27. Rad1 {[%clk 0:01:40]}  Rab8 {[%clk 0:01:49]} 28. Nf2 {[%clk 0:01:37]}  Rb7 {[%clk 0:01:48]} 29. Qd5 {[%clk 0:01:29]}  Rcb8 {[%clk 0:01:44]} 30. Ng4 {[%clk 0:01:26]}  Qe6 {[%clk 0:01:43]} 31. Qxe6 {[%clk 0:01:24]}  fxe6 {[%clk 0:01:41]} 32. h4 {[%clk 0:01:21]}  h5 {[%clk 0:01:39]} 33. Nf2 {[%clk 0:01:20]}  Kf7 {[%clk 0:01:39]} 34. f4 {[%clk 0:01:16]}  exf4 {[%clk 0:01:38]} 35. Bxf4 {[%clk 0:01:17]}  e5 {[%clk 0:01:38]} 36. Be3 {[%clk 0:01:14]}  Ke8 {[%clk 0:01:36]} 37. Nh3 {[%clk 0:01:09]}  Ne6 {[%clk 0:01:35]} 38. Rd5 {[%clk 0:01:06]}  c4 {[%clk 0:01:13]} 39. Ng1 {[%clk 0:00:48]}  Nec5 {[%clk 0:01:12]} 40. Nf3 {[%clk 0:00:42]}  Nxe4 {[%clk 0:01:06]} 41. Nxe5 {[%clk 0:00:40]}  Nxe5 {[%clk 0:01:05]} 42. Rxe5 {[%clk 0:00:41]}  Nf6 {[%clk 0:00:59]} 43. Nd6+ {[%clk 0:00:40]}  Kf8 {[%clk 0:00:59]} 44. Nxb7 {[%clk 0:00:40]}  Rxb7 {[%clk 0:01:00]} 45. Bg5 {[%clk 0:00:37]}  Bc5 {[%clk 0:00:54]} 46. Bxf6 {[%clk 0:00:24]}  gxf6 {[%clk 0:00:55]} 47. Rxh5 {[%clk 0:00:24]}  Kg7 {[%clk 0:00:54]} 48. Rhd5 {[%clk 0:00:23]}  Kg6 {[%clk 0:00:52]} 49. h5+ {[%clk 0:00:22]}  Kh6 {[%clk 0:00:50]} 50. Rf5 {[%clk 0:00:21]}  Kg7 {[%clk 0:00:47]} 51. Rd2 {[%clk 0:00:19]}  Re7 {[%clk 0:00:47]} 52. Kh3 {[%clk 0:00:19]}  Re6 {[%clk 0:00:42]} 53. Rf4 {[%clk 0:00:13]}  Kh6 {[%clk 0:00:37]} 54. Rxc4 {[%clk 0:00:12]}  Kxh5 {[%clk 0:00:36]} 55. Rd5+ {[%clk 0:00:12]}  Kg6 {[%clk 0:00:35]} 56. Rdxc5 {[%clk 0:00:12]}  bxc5 {[%clk 0:00:36]} 57. Rxc5 {[%clk 0:00:12]}  Re2 {[%clk 0:00:35]} 58. Rb5 {[%clk 0:00:11]}  Rc2 {[%clk 0:00:34]} 59. b4 {[%clk 0:00:09]}  Rxc3 {[%clk 0:00:27]} 60. Rxa5 {[%clk 0:00:10]}  Rb3 {[%clk 0:00:27]} 61. Rb5 {[%clk 0:00:10]}  f5 {[%clk 0:00:27]} 62. Kg2 {[%clk 0:00:09]}  Kg5 {[%clk 0:00:26]} 63. a5 {[%clk 0:00:08]}  Kg4 {[%clk 0:00:27]} 64. a6 {[%clk 0:00:08]}  Rxg3+ {[%clk 0:00:27]} 65. Kf2 {[%clk 0:00:08]}  Rb3 {[%clk 0:00:26]} 66. a7 {[%clk 0:00:08]}  f4 {[%clk 0:00:26]} 67. a8=Q {[%clk 0:00:07]}  Rb2+ {[%clk 0:00:27]} 68. Ke1 {[%clk 0:00:08]}  Rb1+ {[%clk 0:00:27]} 69. Kd2 {[%clk 0:00:08]}  Rb3 {[%clk 0:00:27]} 70. Qg8+ {[%clk 0:00:07]}  Kf3 {[%clk 0:00:27]} 71. Qxb3+ {[%clk 0:00:08]}  Kf2 {[%clk 0:00:26]} 72. Rf5 {[%clk 0:00:06]}  f3 {[%clk 0:00:27]} 73. Qxf3+ {[%clk 0:00:06]}  Kg1 {[%clk 0:00:28]} 74. Rg5+ {[%clk 0:00:06]}  Kh2 {[%clk 0:00:28]} 75. Qh5# {[%clk 0:00:07]} 1-0


[Site "https://www.chess.com"]

[Event "Titled Tuesday Blitz February 07 Early 2023"]
[White "Mladek, Richard"]
[Black "De Vreugt, Dennis"]
[WhiteFideId "386588"]
[BlackFideId "1003909"]
[WhiteElo "2436"]
[BlackElo "2392"]
[Result "0-1"]
[Round "03"]
[TimeControl "180+2"]
[Date "2023.02.07"]
[WhiteClock "0:01:04"]
[BlackClock "0:00:53"]

1. d4 {[%clk 0:03:00]}  Nf6 {[%clk 0:02:57]} 2. c4 {[%clk 0:03:00]}  e6 {[%clk 0:02:57]} 3. Nc3 {[%clk 0:03:00]}  Bb4 {[%clk 0:02:57]} 4. e3 {[%clk 0:03:00]}  O-O {[%clk 0:02:54]} 5. Bd2 {[%clk 0:03:01]}  d5 {[%clk 0:02:50]} 6. Nf3 {[%clk 0:03:00]}  b6 {[%clk 0:02:48]} 7. Rc1 {[%clk 0:02:58]}  Ba6 {[%clk 0:02:41]} 8. Qa4 {[%clk 0:02:57]}  Be7 {[%clk 0:02:39]} 9. cxd5 {[%clk 0:02:55]}  Bxf1 {[%clk 0:02:37]} 10. Rxf1 {[%clk 0:02:56]}  exd5 {[%clk 0:02:37]} 11. Ne5 {[%clk 0:02:54]}  c5 {[%clk 0:02:23]} 12. f4 {[%clk 0:02:44]}  a6 {[%clk 0:02:18]} 13. Kf2 {[%clk 0:02:39]}  c4 {[%clk 0:01:56]} 14. Kg1 {[%clk 0:02:34]}  Qe8 {[%clk 0:01:45]} 15. Qxe8 {[%clk 0:02:23]}  Rxe8 {[%clk 0:01:44]} 16. b3 {[%clk 0:02:24]}  b5 {[%clk 0:01:42]} 17. bxc4 {[%clk 0:02:23]}  dxc4 {[%clk 0:01:39]} 18. Be1 {[%clk 0:02:04]}  Nbd7 {[%clk 0:01:24]} 19. Nxd7 {[%clk 0:01:55]}  Nxd7 {[%clk 0:01:22]} 20. e4 {[%clk 0:01:48]}  Ba3 {[%clk 0:01:11]} 21. Rd1 {[%clk 0:01:47]}  b4 {[%clk 0:01:07]} 22. Nd5 {[%clk 0:01:40]}  c3 {[%clk 0:01:05]} 23. Bh4 {[%clk 0:01:09]}  Rxe4 {[%clk 0:00:56]} 24. Nc7 {[%clk 0:01:04]}  Rc8 {[%clk 0:00:54]} 25. Nxa6 {[%clk 0:01:04]}  c2 {[%clk 0:00:53]} 26. Rc1 {[%clk 0:01:04]} 0-1


[Site "https://www.chess.com"]

[Event "Titled Tuesday Blitz February 07 Early 2023"]
[White "Liang, Justin"]
[Black "Dilmukhametov, Artur"]
[WhiteFideId "2099942"]
[BlackFideId "24179922"]
[WhiteElo "2052"]
[BlackElo "2276"]
[Result "0-1"]
[Round "03"]
[TimeControl "180+2"]
[Date "2023.02.07"]
[WhiteClock "0:00:10"]
[BlackClock "0:01:41"]

1. c4 {[%clk 0:01:25]}  c6 {[%clk 0:02:26]} 2. g3 {[%clk 0:01:22]}  d5 {[%clk 0:02:27]} 3. cxd5 {[%clk 0:01:21]}  cxd5 {[%clk 0:02:28]} 4. Bg2 {[%clk 0:01:21]}  Nc6 {[%clk 0:02:28]} 5. Nf3 {[%clk 0:01:22]}  Nf6 {[%clk 0:02:29]} 6. d4 {[%clk 0:01:21]}  Bg4 {[%clk 0:02:29]} 7. O-O {[%clk 0:01:22]}  e6 {[%clk 0:02:29]} 8. Nc3 {[%clk 0:01:22]}  Be7 {[%clk 0:02:29]} 9. Bf4 {[%clk 0:01:20]}  O-O {[%clk 0:02:28]} 10. Qb3 {[%clk 0:01:15]}  Na5 {[%clk 0:02:27]} 11. Qa4 {[%clk 0:01:14]}  a6 {[%clk 0:02:27]} 12. Rfc1 {[%clk 0:01:11]}  b5 {[%clk 0:02:27]} 13. Qd1 {[%clk 0:01:11]}  Rc8 {[%clk 0:02:27]} 14. Ne5 {[%clk 0:01:10]}  Bh5 {[%clk 0:02:24]} 15. a4 {[%clk 0:01:04]}  b4 {[%clk 0:02:24]} 16. Na2 {[%clk 0:01:04]}  Nd7 {[%clk 0:02:21]} 17. Qd3 {[%clk 0:00:56]}  Nxe5 {[%clk 0:02:13]} 18. Bxe5 {[%clk 0:00:54]}  Bg6 {[%clk 0:01:59]} 19. Qd1 {[%clk 0:00:28]}  b3 {[%clk 0:01:47]} 20. Nc3 {[%clk 0:00:13]}  Bc2 {[%clk 0:01:47]} 21. Rxc2 {[%clk 0:00:10]}  bxc2 {[%clk 0:01:48]} 22. Qxc2 {[%clk 0:00:11]}  Nc4 {[%clk 0:01:47]} 23. Bf4 {[%clk 0:00:11]}  Bb4 {[%clk 0:01:41]} 24. Bf1 {[%clk 0:00:10]}  Nxb2 {[%clk 0:01:41]} 0-1


[Site "https://www.chess.com"]